bitfinex/quotes_ETHUSD_20240701
["timestamp","ask_amount","ask_price","bid_price","bid_amount"]
[1719807722426,2.85967,3496.9,3496.8,2.79]
[1719807722629,2.85967,3496.9,3496.8,8.5094]
[1719807723164,3.66144,3497.2,3496.8,8.5094]
[1719807723165,2.85962,3497.0,3496.8,8.5094]
[1719807723333,2.85962,3497.0,3496.8,9.36034]
[1719807723627,2.85965,3497.0,3496.8,9.36034]
[1719807724517,2.85967,3496.9,3496.8,9.36034]
[1719807732742,2.85967,3496.9,3496.8,9.269358]
[1719807735139,2.85944,3497.2,3496.8,9.269358]
[1719807735140,2.85943,3497.2,3496.8,9.269358]
[1719807735341,2.85943,3497.2,3496.9,0.9269358]
[1719807735649,2.85943,3497.2,3497.0,5.7192]
[1719807736207,2.85935,3497.3,3497.1,2.7464]
[1719807736412,2.85935,3497.3,3497.2,5.7189]
[1719807736645,5.85935,3497.3,3497.2,5.7189]
[1719807738119,3.0,3497.3,3497.2,5.7189]
[1719807738524,5.85934,3497.3,3497.2,5.7189]
[1719807738855,6.66134,3497.3,3497.2,5.7189]
[1719807739157,7.15643852,3497.3,3497.2,5.7189]
[1719807739360,6.66134,3497.3,3497.2,5.7189]
[1719807739660,7.15643867,3497.3,3497.2,5.7189]
[1719807742917,7.15646822,3497.3,3497.2,5.7189]
[1719807743317,6.66134,3497.3,3497.2,5.7189]
[1719807743528,7.15646822,3497.3,3497.2,5.7189]
[1719807746032,7.15645695,3497.3,3497.2,5.7189]
[1719807746543,7.15645936,3497.3,3497.2,5.7189]
[1719807746744,10.01579936,3497.3,3497.2,5.7189]
[1719807748253,11.8542093,3497.3,3497.2,5.7189]
[1719807748669,20.1860543,3497.3,3497.2,5.7189]
[1719807748870,23.30015774,3497.3,3497.2,5.7189]
[1719807749245,25.02530282,3497.3,3497.2,5.7189]
[1719807749432,27.88464282,3497.3,3497.2,5.7189]
[1719807749775,25.66437838,3497.3,3497.2,5.7189]
[1719807750060,27.88480906,3497.3,3497.2,5.7189]
[1719807751635,26.84364206,3497.3,3497.2,5.7189]
[1719807752231,23.98430206,3497.3,3497.2,5.7189]
[1719807752432,15.89162406,3497.3,3497.2,5.7189]
[1719807752636,16.69362406,3497.3,3497.2,5.7189]
[1719807753063,16.19838607,3497.3,3497.2,5.7189]
[1719807753232,16.69358565,3497.3,3497.2,5.7189]
[1719807753440,14.47319338,3497.3,3497.2,5.7189]
[1719807753667,16.69339743,3497.3,3497.2,5.7189]
[1719807756288,17.18812712,3497.3,3497.2,5.7189]
[1719807756438,16.69292829,3497.3,3497.2,5.7189]
[1719807756768,16.69294283,3497.3,3497.2,5.7189]
[1719807759337,14.47319338,3497.3,3497.2,5.7189]
[1719807759563,16.69290588,3497.3,3497.2,5.7189]
[1719807762642,14.47319338,3497.3,3497.2,5.7189]
[1719807762842,16.69238436,3497.3,3497.2,5.7189]
[1719807765875,14.47319338,3497.3,3497.2,5.7189]
[1719807766177,16.69239538,3497.3,3497.2,5.7189]
[1719807766480,16.69239264,3497.3,3497.2,5.7189]
[1719807766993,13.03105264,3497.3,3497.2,5.7189]
[1719807767176,12.5446427,3497.3,3497.2,5.7189]
[1719807768245,12.5444476,3497.3,3497.2,5.7189]
[1719807768772,15.4037876,3497.3,3497.2,5.7189]
[1719807768980,13.18458834,3497.3,3497.2,5.7189]
[1719807769288,15.40380727,3497.3,3497.2,5.7189]
[1719807769450,17.230111,3497.3,3497.2,5.7189]
[1719807769652,20.371911,3497.3,3497.2,5.7189]
[1719807769860,27.606303,3497.3,3497.2,5.7189]
[1719807772249,25.38708407,3497.3,3497.2,5.7189]
[1719807772450,27.606263,3497.3,3497.2,5.7189]
[1719807775183,30.465603,3497.3,3497.2,5.7189]
[1719807775353,28.24642407,3497.3,3497.2,5.7189]
[1719807775552,27.60656753,3497.3,3497.2,5.7189]
[1719807775785,31.94047525,3497.3,3497.2,5.7189]
[1719807776885,29.08113525,3497.3,3497.2,5.7189]
[1719807778586,27.35689212,3497.3,3497.2,5.7189]
[1719807778755,29.08106698,3497.3,3497.2,5.7189]
[1719807778959,26.86164907,3497.3,3497.2,5.7189]
[1719807779297,31.9404031,3497.3,3497.2,5.7189]
[1719807779471,29.0810631,3497.3,3497.2,5.7189]
[1719807779669,29.72098907,3497.3,3497.2,5.7189]
[1719807779853,31.94040556,3497.3,3497.2,5.7189]
[1719807780056,29.08106556,3497.3,3497.2,5.7189]
[1719807780490,31.94040556,3497.3,3497.2,5.7189]
[1719807780677,29.08106556,3497.3,3497.2,5.7189]
[1719807781059,31.44525692,3497.3,3497.2,5.7189]
[1719807781387,31.94050111,3497.3,3497.2,5.7189]
[1719807781596,29.08116111,3497.3,3497.2,5.7189]
[1719807781762,31.94050111,3497.3,3497.2,5.7189]
[1719807781962,31.94056651,3497.3,3497.2,5.7189]
[1719807783609,34.21829462,3497.3,3497.2,5.7189]
[1719807784286,34.21836937,3497.3,3497.2,5.7189]
[1719807787371,31.67315226,3497.3,3497.2,5.7189]
[1719807787672,35.67692294,3497.3,3497.2,5.7189]
[1719807789307,31.17788949,3497.3,3497.2,5.7189]
[1719807792297,31.67314691,3497.3,3497.2,5.7189]
[1719807793005,31.67314691,3497.3,3497.2,2.85946]
[1719807794099,35.18162082,3497.3,3497.2,2.85946]
[1719807794280,31.17788949,3497.3,3497.2,2.85946]
[1719807795019,22.46893249,3497.3,3497.2,2.85946]
[1719807795317,50.33031949,3497.3,3497.2,2.85946]
[1719807800121,50.82559156,3497.3,3497.2,2.85946]
[1719807800287,50.82562243,3497.3,3497.2,2.85946]
[1719807800638,50.33035036,3497.3,3497.2,2.85946]
[1719807800820,50.82561996,3497.3,3497.2,2.85946]
[1719807803448,49.11412033,3497.3,3497.2,2.85946]
[1719807803584,50.82561839,3497.3,3497.2,2.85946]
[1719807804622,50.82562083,3497.3,3497.2,2.85946]
[1719807805126,54.82930783,3497.3,3497.2,2.85946]
[1719807806505,4.75358198,3497.3,3497.2,5.83376]
[1719807806806,6.62430969,3497.3,3497.2,5.83376]
[1719807807032,6.36968675,3497.3,3497.2,5.83376]
[1719807807342,3.35461204,3497.3,3497.2,5.83376]
[1719807807832,3.35446227,3497.3,3497.2,5.83376]
[1719807808049,6.35446227,3497.3,3497.2,5.83376]
[1719807808336,6.35446388,3497.3,3497.2,5.83376]
[1719807810828,5.85934,3497.3,3497.2,5.83376]
[1719807811164,6.35446164,3497.3,3497.2,5.83376]
[1719807811345,6.3544611,3497.3,3497.2,5.83376]
[1719807812143,5.85934,3497.3,3497.2,5.83376]
[1719807814149,9.26868,3497.3,3497.2,5.83376]
[1719807814318,10.770896,3497.3,3497.2,2.85946]
[1719807814813,21.53647027,3497.3,3497.2,2.85946]
[1719807815221,18.05929727,3497.3,3497.2,2.85946]
[1719807816347,16.15629727,3497.3,3497.2,2.85946]
[1719807817592,16.1563561,3497.3,3497.2,2.85946]
[1719807817868,19.81623751,3497.3,3497.2,2.85946]
[1719807819250,16.95689751,3497.3,3497.2,2.85946]
[1719807819552,19.81623297,3497.3,3497.2,2.85946]
[1719807820453,19.32102437,3497.3,3497.2,2.85946]
[1719807820652,19.81624483,3497.3,3497.2,2.85946]
[1719807820878,18.52048473,3497.3,3497.2,2.85946]
[1719807821148,19.81629855,3497.3,3497.2,2.85946]
[1719807823744,19.81626503,3497.3,3497.2,2.85946]
[1719807825547,29.93589303,3497.3,3497.2,2.85946]
[1719807826360,28.13589303,3497.3,3497.2,2.85946]
[1719807826731,26.84011273,3497.3,3497.2,2.85946]
[1719807826936,28.13588226,3497.3,3497.2,2.85946]
[1719807827952,24.53588226,3497.3,3497.2,2.85946]
[1719807829380,24.13588226,3497.3,3497.2,2.85946]
[1719807830036,23.33533953,3497.3,3497.2,2.85946]
[1719807830348,24.13570908,3497.3,3497.2,2.85946]
[1719807831875,24.13561594,3497.3,3497.2,2.85946]
[1719807833389,24.13574518,3497.3,3497.2,2.85946]
[1719807833746,24.13574557,3497.3,3497.2,2.85946]
[1719807833946,22.87574557,3497.3,3497.2,2.85946]
[1719807836486,22.8757492,3497.3,3497.2,2.85946]
[1719807836655,19.61641289,3497.3,3497.2,2.85946]
[1719807836851,23.27775289,3497.3,3497.2,2.85946]
[1719807839385,23.27774272,3497.3,3497.2,2.85946]
[1719807839590,22.78250671,3497.3,3497.2,2.85946]
[1719807839797,23.27771982,3497.3,3497.2,2.85946]
[1719807841897,22.47724977,3497.3,3497.2,2.85946]
[1719807842086,23.27783144,3497.3,3497.2,2.85946]
[1719807845178,21.98201959,3497.3,3497.2,2.85946]
[1719807845482,23.27786141,3497.3,3497.2,2.85946]
[1719807845668,23.2778825,3497.3,3497.2,2.85946]
[1719807848171,21.98201959,3497.3,3497.2,2.85946]
[1719807848384,23.27782747,3497.3,3497.2,2.85946]
[1719807848590,23.27782859,3497.3,3497.2,2.85946]
[1719807851485,23.27767293,3497.3,3497.2,2.85946]
[1719807854088,20.53137493,3497.3,3497.2,2.85946]
[1719807854287,20.83799607,3497.3,3497.2,2.85946]
[1719807854492,21.33324082,3497.3,3497.2,2.85946]
[1719807854688,20.83799607,3497.3,3497.2,2.85946]
[1719807854881,21.3332051,3497.3,3497.2,2.85946]
[1719807857027,18.6404501,3497.3,3497.2,2.85946]
[1719807858099,18.64041497,3497.3,3497.2,2.85946]
[1719807858440,20.43729697,3497.3,3497.2,2.85946]
[1719807858719,20.43729131,3497.3,3497.2,2.85946]
[1719807858881,20.43729131,3497.3,3497.2,2.81432389]
[1719807861210,18.1449631,3497.3,3497.2,2.81432389]
[1719807861399,20.43656897,3497.3,3497.2,2.81432389]
[1719807864021,28.31207797,3497.3,3497.2,2.81432389]
[1719807864321,25.47983193,3497.3,3497.2,2.81432389]
[1719807864526,28.07710057,3497.3,3497.2,2.81432389]
[1719807866937,29.52746645,3497.3,3497.2,2.81432389]
[1719807867493,29.03193421,3497.3,3497.2,2.81432389]
[1719807867720,29.5271805,3497.3,3497.2,2.81432389]
[1719807870714,26.43495247,3497.3,3497.2,2.81432389]
[1719807870916,29.52717776,3497.3,3497.2,2.81432389]
[1719807871116,26.68052386,3497.3,3497.2,2.81432389]
[1719807871335,29.27748019,3497.3,3497.2,2.81432389]
[1719807873127,35.45052019,3497.3,3497.2,3.89e-06]
[1719807873310,35.45052019,3497.3,3495.5,7.32]
[1719807873311,8.58048,3496.3,3496.2,3.2886]
[1719807873498,4.03550737,3496.3,3496.2,3.2886]
[1719807873721,4.39090678,3496.3,3496.2,3.2886]
[1719807873916,7.15578703,3496.3,3496.2,3.2886]
[1719807874112,7.15578703,3496.3,3496.2,9.009]
[1719807874113,6.35550218,3496.3,3496.2,9.009]
[1719807874417,6.35550218,3496.3,3496.2,9.9099]
[1719807875521,3.49534218,3496.3,3496.2,9.9099]
[1719807875697,0.49534218,3496.3,3496.2,9.9099]
[1719807875902,3.49534218,3496.3,3496.2,9.9099]
[1719807876106,0.49534218,3496.3,3496.2,9.9099]
[1719807877134,3.0,3496.4,3496.3,3.0728]
[1719807877365,3.74118826,3496.4,3496.3,9.76251]
[1719807880374,3.24593304,3496.4,3496.3,9.76251]
[1719807880568,3.74118082,3496.4,3496.3,9.76251]
[1719807882677,6.60126082,3496.4,3496.3,9.76251]
[1719807886478,6.10601304,3496.4,3496.3,9.76251]
[1719807886681,6.60127159,3496.4,3496.3,9.76251]
[1719807889811,6.60126947,3496.4,3496.3,9.76251]
[1719807890555,3.74118947,3496.4,3496.3,9.76251]
[1719807892080,6.60126947,3496.4,3496.3,9.76251]
[1719807892989,6.10601304,3496.4,3496.3,9.76251]
[1719807893185,6.60126591,3496.4,3496.3,8.7931]
[1719807896191,6.10601304,3496.4,3496.3,8.7931]
[1719807896397,6.60126539,3496.4,3496.3,8.7931]
[1719807896759,6.60126537,3496.4,3496.3,8.7931]
[1719807899390,6.10601304,3496.4,3496.3,8.7931]
[1719807899687,6.60126532,3496.4,3496.3,8.7931]
[1719807901796,6.10601304,3496.4,3496.3,8.7931]
[1719807902095,6.60126607,3496.4,3496.3,8.7931]
[1719807902487,6.60126663,3496.4,3496.3,8.7931]
[1719807905047,6.60126576,3496.4,3496.3,8.7931]
[1719807908313,6.60126383,3496.4,3496.3,8.7931]
[1719807908688,6.10601304,3496.4,3496.3,8.7931]
[1719807908893,6.60125239,3496.4,3496.3,8.7931]
[1719807910329,3.74117239,3496.4,3496.3,8.7931]
[1719807910526,0.74117239,3496.4,3496.3,8.7931]
[1719807911354,0.24593304,3496.4,3496.3,8.7931]
[1719807911498,0.74117613,3496.4,3496.3,8.7931]
[1719807913892,3.60125613,3496.4,3496.3,8.7931]
[1719807914225,6.60125613,3496.4,3496.3,8.7931]
[1719807914414,3.74117613,3496.4,3496.3,8.7931]
[1719807914620,3.24593304,3496.4,3496.3,8.7931]
[1719807914816,3.74117766,3496.4,3496.3,8.7931]
[1719807915028,6.60125766,3496.4,3496.3,5.7203]
[1719807916242,10.48766943,3496.4,3496.3,5.7203]
[1719807916437,11.28808446,3496.4,3496.3,5.7203]
[1719807917829,9.99242481,3496.4,3496.3,5.7203]
[1719807918141,11.28811925,3496.4,3496.3,5.7203]
[1719807921113,18.02573911,3496.4,3496.3,5.7203]
[1719807921511,18.02586798,3496.4,3496.3,5.7203]
[1719807923813,18.02326972,3496.4,3496.3,5.7203]
[1719807924213,18.02324212,3496.4,3496.3,5.7203]
[1719807924449,18.02324734,3496.4,3496.3,5.7203]
[1719807927149,16.72750655,3496.4,3496.3,5.7203]
[1719807927312,18.0230356,3496.4,3496.3,5.7203]
[1719807928018,10.25902383,3496.4,3496.3,5.7203]
[1719807928219,11.06102383,3496.4,3496.3,5.7203]
[1719807929452,7.39894383,3496.4,3496.3,5.7203]
[1719807929652,6.59874022,3496.4,3496.3,5.7203]
[1719807930225,7.40074022,3496.4,3496.3,5.7203]
[1719807930428,6.90541478,3496.4,3496.3,5.7203]
[1719807930625,7.40067082,3496.4,3496.3,5.7203]
[1719807933687,6.90541478,3496.4,3496.3,5.7203]
[1719807933857,7.40067843,3496.4,3496.3,5.7203]
[1719807935064,10.26075843,3496.4,3496.3,5.7203]
[1719807936170,12.63687728,3496.4,3496.3,5.7203]
[1719807936826,12.14166665,3496.4,3496.3,5.7203]
[1719807937025,12.63697813,3496.4,3496.3,5.7203]
[1719807937248,15.49705813,3496.4,3496.3,5.7203]
[1719807939887,14.20165062,3496.4,3496.3,5.7203]
[1719807940191,15.49706089,3496.4,3496.3,5.7203]
[1719807940783,14.69506089,3496.4,3496.3,5.7203]
[1719807941084,15.49706089,3496.4,3496.3,5.7203]
[1719807943079,15.49697161,3496.4,3496.3,5.7203]
[1719807943383,16.29710623,3496.4,3496.3,5.7203]
[1719807946373,15.49706475,3496.4,3496.3,5.7203]
[1719807946562,15.49706462,3496.4,3496.3,5.7203]
[1719807946892,15.49705742,3496.4,3496.3,5.7203]
[1719807948069,14.69505742,3496.4,3496.3,5.7203]
[1719807948457,15.49705742,3496.4,3496.3,5.7203]
[1719807949391,14.20156134,3496.4,3496.3,5.7203]
[1719807949688,15.49704608,3496.4,3496.3,5.7203]
[1719807952668,15.00176199,3496.4,3496.3,5.7203]
[1719807952900,15.59709496,3496.4,3496.3,5.7203]
[1719807955178,11.93501496,3496.4,3496.3,5.7203]
[1719807955384,11.71093912,3496.4,3496.3,5.7203]
[1719807955907,10.91071184,3496.4,3496.3,5.7203]
[1719807956237,11.71088875,3496.4,3496.3,5.7203]
[1719807956573,10.90886228,3496.4,3496.3,5.7203]
[1719807956768,11.71086228,3496.4,3496.3,5.7203]
[1719807958404,2.86,3496.5,3496.4,88.28913772]
[1719807958682,3.662,3496.5,3496.4,94.00933772]
[1719807958902,6.522,3496.5,3496.4,97.78374903]
[1719807959209,2.86,3496.5,3496.4,97.78374903]
[1719807959425,3.662,3496.5,3496.4,97.78374903]
[1719807960611,6.662,3496.5,3496.4,97.78374903]
[1719807963035,9.522,3496.5,3496.4,97.78374903]
[1719807963203,9.522,3496.5,3496.4,94.00933772]
[1719807968954,12.382,3496.5,3496.4,94.00933772]
[1719807973339,13.07584525,3496.5,3496.4,94.00933772]
[1719807974012,12.62013499,3496.5,3496.4,94.00933772]
[1719807974369,13.07586155,3496.5,3496.4,94.00933772]
[1719807974725,12.62013499,3496.5,3496.4,94.00933772]
[1719807978514,19.19003499,3496.5,3496.4,94.00933772]
[1719807979037,13.17013499,3496.5,3496.4,94.00933772]
[1719807979412,8.95813499,3496.5,3496.4,94.00933772]
[1719807979723,8.95813499,3496.5,3496.4,96.87077273]
[1719807979724,9.76013499,3496.5,3496.4,96.87077273]
[1719807980043,9.76013499,3496.5,3496.4,100.21387273]
[1719807980044,8.95813499,3496.5,3496.4,100.21387273]
[1719807980438,9.76013499,3496.5,3496.4,100.21387273]
[1719807981773,9.76013499,3496.5,3496.4,96.87077273]
[1719807981931,12.62013499,3496.5,3496.4,94.00933772]
[1719807982777,13.17013499,3496.5,3496.4,94.00933772]
[1719807984636,13.17012606,3496.5,3496.4,94.00933772]
[1719807986553,13.62583546,3496.5,3496.4,94.00933772]
[1719807987282,13.17012606,3496.5,3496.4,94.00933772]
[1719807987501,13.62583779,3496.5,3496.4,94.00933772]
[1719807987635,13.17012606,3496.5,3496.4,94.00933772]
[1719807987842,13.6259231,3496.5,3496.4,94.00933772]
[1719807988488,12.8239231,3496.5,3496.4,94.00933772]
[1719807988645,13.6259231,3496.5,3496.4,94.00933772]
[1719807990306,13.17012606,3496.5,3496.4,94.00933772]
[1719807990607,13.62598837,3496.5,3496.4,94.00933772]
[1719807993384,13.07604987,3496.5,3496.4,94.00933772]
[1719807993592,10.21603129,3496.5,3496.4,96.87077273]
[1719807993884,10.21603129,3496.5,3496.4,100.28357273]
[1719807995383,9.41403129,3496.5,3496.4,100.28357273]
[1719807995583,10.21603129,3496.5,3496.4,100.28357273]
[1719807996643,9.76018756,3496.5,3496.4,100.28357273]
[1719807996851,10.21595498,3496.5,3496.4,100.28357273]
[1719807999998,10.21590833,3496.5,3496.4,100.28357273]
[1719808000376,9.76018756,3496.5,3496.4,100.28357273]
[1719808000564,10.21590792,3496.5,3496.4,100.28357273]
[1719808000771,10.21590792,3496.5,3496.4,94.00933772]
[1719808001482,13.07590792,3496.5,3496.4,94.00933772]
[1719808003088,13.07600911,3496.5,3496.4,94.00933772]
[1719808003402,13.07600873,3496.5,3496.4,94.00933772]
[1719808006290,12.62018756,3496.5,3496.4,94.00933772]
[1719808006446,13.07598895,3496.5,3496.4,94.00933772]
[1719808006892,13.07595048,3496.5,3496.4,94.00933772]
[1719808011534,16.66845048,3496.5,3496.4,94.00933772]
[1719808012281,13.07595048,3496.5,3496.4,94.00933772]
[1719808012602,12.62014909,3496.5,3496.4,94.00933772]
[1719808012932,13.07616526,3496.5,3496.4,94.00933772]
[1719808013083,13.07617344,3496.5,3496.4,94.00933772]
[1719808014298,15.93617344,3496.5,3496.4,94.00933772]
[1719808014688,17.3828314,3496.5,3496.4,94.00933772]
[1719808015923,17.3829004,3496.5,3496.4,94.00933772]
[1719808016308,15.93624244,3496.5,3496.4,94.00933772]
[1719808018225,16.48624244,3496.5,3496.4,94.00933772]
[1719808018422,18.43911668,3496.5,3496.4,94.00933772]
[1719808019237,18.43911166,3496.5,3496.4,94.00933772]
[1719808020711,15.68423742,3496.5,3496.4,94.00933772]
[1719808021011,16.48623742,3496.5,3496.4,94.00933772]
[1719808021574,16.4862373,3496.5,3496.4,94.00933772]
[1719808024437,17.9328138,3496.5,3496.4,94.00933772]
[1719808024634,17.93287261,3496.5,3496.4,94.00933772]
[1719808025093,17.47672559,3496.5,3496.4,94.00933772]
[1719808025295,20.03979262,3496.5,3496.4,94.00933772]
[1719808026942,30.16123662,3496.5,3496.4,94.00933772]
[1719808027138,31.74369684,3496.5,3496.4,94.00933772]
[1719808027759,29.70509215,3496.5,3496.4,94.00933772]
[1719808027932,30.16116102,3496.5,3496.4,94.00933772]
[1719808028088,38.32911969,3496.5,3496.4,94.00933772]
[1719808031014,38.32930821,3496.5,3496.4,94.00933772]
[1719808033728,38.75210214,3496.5,3496.4,94.00933772]
[1719808034029,36.71328608,3496.5,3496.4,94.00933772]
[1719808034189,38.75204192,3496.5,3496.4,94.00933772]
[1719808037139,36.71328608,3496.5,3496.4,94.00933772]
[1719808037302,37.16946127,3496.5,3496.4,94.00933772]
[1719808037829,36.71328608,3496.5,3496.4,94.00933772]
[1719808038033,37.1694386,3496.5,3496.4,94.00933772]
[1719808040417,36.71328608,3496.5,3496.4,94.00933772]
[1719808040625,37.16943421,3496.5,3496.4,94.00933772]
[1719808043744,37.1694229,3496.5,3496.4,94.00933772]
[1719808043911,36.93127381,3496.5,3496.4,94.00933772]
[1719808044251,37.16898404,3496.5,3496.4,94.00933772]
[1719808045340,37.16898404,3496.5,3496.4,87.45733772]
[1719808045512,38.91130399,3496.5,3496.4,87.45733772]
[1719808046209,39.66130399,3496.5,3496.4,87.45733772]
[1719808046412,40.08409792,3496.5,3496.4,87.45733772]
[1719808046834,40.084102,3496.5,3496.4,87.45733772]
[1719808047034,39.334102,3496.5,3496.4,87.45733772]
[1719808048549,35.608702,3496.5,3496.4,87.45733772]
[1719808048770,33.080708,3496.5,3496.4,87.45733772]
[1719808049041,41.180308,3496.5,3496.4,74.94535449]
[1719808049238,41.982308,3496.5,3496.4,74.94535449]
[1719808050102,41.98230136,3496.5,3496.4,74.94535449]
[1719808050514,41.98229078,3496.5,3496.4,74.94535449]
[1719808053051,39.94417532,3496.5,3496.4,74.94535449]
[1719808053250,41.98327778,3496.5,3496.4,74.94535449]
[1719808054476,29.19996129,3496.5,3496.4,74.94535449]
[1719808054772,30.00196129,3496.5,3496.4,74.94535449]
[1719808055539,59.01021222,3496.5,3496.4,74.94535449]
[1719808055738,59.56021222,3496.5,3496.4,74.94535449]
[1719808056176,59.56019765,3496.5,3496.4,74.94535449]
[1719808056474,61.14288934,3496.5,3496.4,74.94535449]
[1719808057266,64.00432435,3496.5,3496.4,74.94535449]
[1719808059347,62.42163266,3496.5,3496.4,74.94535449]
[1719808059681,64.00472575,3496.5,3496.4,74.94535449]
[1719808060581,65.72472575,3496.5,3496.4,74.94535449]
[1719808061377,64.04043902,3496.5,3496.4,74.94535449]
[1719808061687,65.72520567,3496.5,3496.4,74.94535449]
[1719808062748,65.72512589,3496.5,3496.4,74.94535449]
[1719808063272,65.72508797,3496.5,3496.4,74.94535449]
[1719808065848,65.72470495,3496.5,3496.4,74.94535449]
[1719808066048,65.72470915,3496.5,3496.4,74.94535449]
[1719808069088,64.14211258,3496.5,3496.4,74.94535449]
[1719808069391,65.72462259,3496.5,3496.4,74.94535449]
[1719808072465,65.72465334,3496.5,3496.4,74.94535449]
[1719808073595,65.72404265,3496.5,3496.4,74.94535449]
[1719808074856,63.68495476,3496.5,3496.4,74.94535449]
[1719808075056,31.37404776,3496.5,3496.4,74.94535449]
[1719808075398,63.68495476,3496.5,3496.4,74.94535449]
[1719808075561,63.68492701,3496.5,3496.4,74.94535449]
[1719808076265,64.67587155,3496.5,3496.4,74.94535449]
[1719808078719,64.67607216,3496.5,3496.4,74.94535449]
[1719808078880,64.67608848,3496.5,3496.4,74.94535449]
[1719808079083,64.67644578,3496.5,3496.4,74.94535449]
[1719808079285,64.97516149,3496.5,3496.4,74.94535449]
[1719808081028,62.40148701,3496.5,3496.4,74.94535449]
[1719808081177,64.97515879,3496.5,3496.4,74.94535449]
[1719808084215,62.40148701,3496.5,3496.4,74.94535449]
[1719808084425,64.97515963,3496.5,3496.4,74.94535449]
[1719808087219,32.66425263,3496.5,3496.4,74.94535449]
[1719808087418,62.40148701,3496.5,3496.4,74.94535449]
[1719808087719,64.97529837,3496.5,3496.4,74.94535449]
[1719808088019,61.10730125,3496.5,3496.4,74.94535449]
[1719808090529,61.10731104,3496.5,3496.4,74.94535449]
[1719808090725,61.10731097,3496.5,3496.4,74.94535449]
[1719808091092,63.41157588,3496.5,3496.4,74.94535449]
[1719808093927,63.4116156,3496.5,3496.4,74.94535449]
[1719808096840,63.41168782,3496.5,3496.4,74.94535449]
[1719808097032,63.4116941,3496.5,3496.4,74.94535449]
[1719808098111,62.42070728,3496.5,3496.4,74.94535449]
[1719808098412,63.41170619,3496.5,3496.4,74.94535449]
[1719808100154,59.52454884,3496.5,3496.4,74.94535449]
[1719808100313,63.4116862,3496.5,3496.4,74.94535449]
[1719808100752,63.41157073,3496.5,3496.4,74.94535449]
[1719808101656,63.41157073,3496.5,3496.4,74.39653449]
[1719808102114,31.10066373,3496.5,3496.4,74.39653449]
[1719808102514,63.41157073,3496.5,3496.4,74.39653449]
[1719808102711,59.89973873,3496.5,3496.4,74.39653449]
[1719808102949,56.31679408,3496.5,3496.4,74.39653449]
[1719808103353,53.02164028,3496.5,3496.4,74.39653449]
[1719808104481,54.0125879,3496.5,3496.4,74.39653449]
[1719808104794,53.02164028,3496.5,3496.4,74.39653449]
[1719808105780,56.31692389,3496.5,3496.4,74.39653449]
[1719808106492,54.01258536,3496.5,3496.4,74.39653449]
[1719808106673,53.21058536,3496.5,3496.4,74.39653449]
[1719808106855,52.29258536,3496.5,3496.4,78.65183449]
[1719808107052,51.30164073,3496.5,3496.4,78.65183449]
[1719808109692,49.71878258,3496.5,3496.4,78.65183449]
[1719808109898,51.30158245,3496.5,3496.4,78.65183449]
[1719808110556,21.32438345,3496.5,3496.4,78.65183449]
[1719808110760,22.12638345,3496.5,3496.4,78.65183449]
[1719808111893,24.82996135,3496.5,3496.4,78.65183449]
[1719808112887,24.82977322,3496.5,3496.4,78.65183449]
[1719808113278,24.82975188,3496.5,3496.4,78.65183449]
[1719808115995,24.82977328,3496.5,3496.4,78.65183449]
[1719808116387,25.28591973,3496.5,3496.4,78.65183449]
[1719808116588,22.66204373,3496.5,3496.4,78.65183449]
[1719808116802,38.02882673,3496.5,3496.4,78.65183449]
[1719808119026,38.02879429,3496.5,3496.4,78.65183449]
[1719808122233,38.0288685,3496.5,3496.4,78.65183449]
[1719808125568,38.0287489,3496.5,3496.4,78.65183449]
[1719808126040,38.02876409,3496.5,3496.4,78.65183449]
[1719808128118,38.02876409,3496.5,3496.4,74.39653449]
[1719808128633,40.89019517,3496.5,3496.4,74.39653449]
[1719808129957,41.18694898,3496.5,3496.4,74.39653449]
[1719808131667,39.1482573,3496.5,3496.4,74.39653449]
[1719808131836,41.18709727,3496.5,3496.4,74.39653449]
[1719808132939,41.21162942,3496.5,3496.4,74.39653449]
[1719808136345,38.35019441,3496.5,3496.4,74.39653449]
[1719808137062,55.29431841,3496.5,3496.4,74.39653449]
[1719808138128,55.29440381,3496.5,3496.4,74.39653449]
[1719808138438,53.25547844,3496.5,3496.4,74.39653449]
[1719808138640,55.29441826,3496.5,3496.4,74.39653449]
[1719808139370,50.71088071,3496.5,3496.4,74.39653449]
[1719808139543,51.51288071,3496.5,3496.4,74.39653449]
[1719808140753,49.47394089,3496.5,3496.4,74.39653449]
[1719808141067,51.51284494,3496.5,3496.4,74.39653449]
[1719808141264,49.47394089,3496.5,3496.4,74.39653449]
[1719808141478,51.51288568,3496.5,3496.4,74.39653449]
[1719808143567,49.47394089,3496.5,3496.4,74.39653449]
[1719808143743,51.5136105,3496.5,3496.4,74.39653449]
[1719808146830,49.47394089,3496.5,3496.4,74.39653449]
[1719808147034,51.51389758,3496.5,3496.4,74.39653449]
[1719808149539,42.01808658,3496.5,3496.4,74.39653449]
[1719808150175,42.01774621,3496.5,3496.4,74.39653449]
[1719808150472,39.97812989,3496.5,3496.4,74.39653449]
[1719808150677,42.0179145,3496.5,3496.4,74.39653449]
[1719808152377,44.87934951,3496.5,3496.4,73.88524234]
[1719808153274,23.8060749,3496.5,3496.4,73.88524234]
[1719808153454,55.83927431,3496.5,3496.4,73.88524234]
[1719808153654,25.84596131,3496.5,3496.4,73.88524234]
[1719808154343,54.03927431,3496.5,3496.4,73.88524234]
[1719808155361,52.78927431,3496.5,3496.4,73.88524234]
[1719808156071,51.10384531,3496.5,3496.4,73.88524234]
[1719808156707,51.10383534,3496.5,3496.4,73.88524234]
[1719808158051,51.10466546,3496.5,3496.4,73.88524234]
[1719808158701,49.39464926,3496.5,3496.4,73.88524234]
[1719808158998,49.06479395,3496.5,3496.4,73.88524234]
[1719808161607,51.10460199,3496.5,3496.4,73.88524234]
[1719808161757,49.52101077,3496.5,3496.4,73.88524234]
[1719808161955,49.06449931,3496.5,3496.4,73.88524234]
[1719808164302,49.0645436,3496.5,3496.4,73.88524234]
[1719808164794,52.6745436,3496.5,3496.4,66.45014934]
[1719808164957,59.45973435,3496.5,3496.4,65.45916934]
[1719808166559,66.51275735,3496.5,3496.4,65.45916934]
[1719808167899,66.51275735,3496.5,3496.4,58.90716934]
[1719808168267,66.51275735,3496.5,3496.4,58.42716934]
[1719808168463,67.1789707,3496.5,3496.4,58.42716934]
[1719808169202,67.1789707,3496.5,3496.4,52.87622934]
[1719808169998,67.1789707,3496.5,3496.4,48.58487934]
[1719808171585,72.51429732,3496.5,3496.4,44.29352934]
[1719808171769,72.51428082,3496.5,3496.4,42.86307934]
[1719808171980,72.51428082,3496.5,3496.4,41.43262934]
[1719808172527,72.51428082,3496.5,3496.4,37.14127934]
[1719808172528,72.51434111,3496.5,3496.4,37.14127934]